Cogmind - Beta 10.2 @@@ ROGUE MODE // 2022.02.12 @ 15:51:51 Player: SURFACESEEKER Result: Destroyed by Y-64 Sentinel with KE Penetrator Performance ------------- Evolutions (6) 3000 Regions Visited (17) 3400 Robots Destroyed (190) 950 Value Destroyed (9153) 9153 Prototype IDs (30) 600 Alien Tech Used (0) 0 Bonus (4412) 4412 TOTAL SCORE: 21515 Bonus ------- High Alert Combat Kills 327 Follower Combat Kills 363 Entered Garrisons 1000 Used RIF Installer 2500 Aligned with FarCom 300 Friendly Fire -78 Cogmind --------- Core Integrity 0/1150 Matter 20/300 Energy 99/100 System Corruption 10% Temperature Cool (9) Movement Core (50) Location -4/Factory Parts ------- > --- POWER (3) -------- (None) > --- PROPULSION (6) --- (None) > --- UTILITY (6) ------ (None) > --- WEAPON (4) ------- (None) > --- INVENTORY (4) ---- Advanced ECM Suite Relay Coupler [ARC] (9) Relay Coupler [Demolisher] (22) Improved Datajack Peak State ------------ > --- POWER ------------ Light Angular Momentum Engine Light Antimatter Reactor Light Antimatter Reactor > --- PROPULSION ------- Medium Treads Medium Treads Flexi-carbon Leg Flexi-carbon Leg Flexi-carbon Leg Myomer Leg > --- UTILITY ---------- Advanced Cooling System Large Storage Unit Large Storage Unit High-capacity Storage Unit Relay Coupler [Swarmer] Relay Coupler [Hunter] > --- WEAPON ----------- Tesla Rifle Coil Gun KE Penetrator Mini Smartbomb Launcher > --- INVENTORY -------- Advanced Heat Sink Advanced Cooling System Advanced Cooling System Large Storage Unit Superbattery Terrain Scanner Terrain Scan Processor Advanced ECM Suite Phase Shifter Improved Phase Shifter Core Shielding EM Shield Relay Coupler [ARC] Relay Coupler [Demolisher] Trap Reconfigurator Electrolaser Long-range Proton Cannon Long-range Proton Cannon Heavy Plasma Cannon Heavy Plasma Cannon Hardcell Cannon Improved Datajack Improved Remote Datajack Thunder Hammer [Rating: 102] Favorites ----------- Power Light Nuclear Core Engine Light Ion Engine Power Core Light Nuclear Core Reactor Light Antimatter Reactor Propulsion Aluminum Leg Treads Medium Treads Leg Aluminum Leg Wheel Armored Wheel Hover Unit Antigrav System Flight Unit VTOL Module Utility High-capacity Storage Unit Device Advanced Terrain Scanner Storage High-capacity Storage Unit Processor Improved Terrain Scan Processor Hackware Relay Coupler [NC] Protection Core Shielding Weapon Long-range Proton Cannon Energy Gun Electrolaser Energy Cannon Long-range Proton Cannon Ballistic Gun Enhanced Autogun Ballistic Cannon Flak Cannon Launcher Mini Smartbomb Launcher Special Weapon Improved Remote Datajack Impact Weapon Heavy Mace Special Melee Weapon Improved Datajack Build | -11 -10 -10 -10 -9 -8 -8 -7 -7 -7 -7 -6 -6 -5 -5 -4 -4 -4 ------- Run | Scr Mat Min Exi Min Mat Gar Fac Gar Fac Gar Fac Gar Fac Ext Fac Gar Fac Slots Evolved 12 | . . . . . 4 . 2 . . . 2 . 2 . 2 . . Power 2 | . . . . . . . 1 . . . 1 . . . . . . Propulsion 4 | . . . . . 2 . . . . . . . 1 . 1 . . Utility 4 | . . . . . 2 . 1 . . . . . 1 . . . . Weapon 2 | . . . . . . . . . . . 1 . . . 1 . . Parts Attached 342 | 7 1 8 2 8 34 17 8 18 9 42 15 19 57 48 11 38 . Power 39 | 1 . 2 . 2 4 1 1 2 . 8 4 1 4 6 3 . . Engine 20 | 1 . 2 . 2 3 . . . . . 1 1 3 6 1 . . Core 17 | . . . . . 1 1 1 2 . 8 3 . 1 . . . . Reactor 2 | . . . . . . . . . . . . . . . 2 . . Propulsion 89 | 2 . 2 . 4 11 5 1 5 3 7 6 6 17 14 3 3 . Treads 7 | . . . . . . . . . . . . . . 7 . . . Leg 71 | 2 . 2 . 4 7 5 1 5 3 7 6 6 12 7 3 1 . Wheel 7 | . . . . . 4 . . . . . . . 3 . . . . Hover 2 | . . . . . . . . . . . . . 2 . . . . Flight 2 | . . . . . . . . . . . . . . . . 2 . Utility 95 | 2 . 3 1 1 7 6 4 6 2 12 2 4 19 11 1 14 . Device 56 | 1 . . . 1 4 5 4 5 2 9 2 1 8 4 . 10 . Storage 13 | . . 3 1 . 2 1 . 1 . . . . 2 1 . 2 . Processor 3 | 1 . . . . 1 . . . . . . . . 1 . . . Hackware 20 | . . . . . . . . . . 3 . 3 9 3 1 1 . Protection 3 | . . . . . . . . . . . . . . 2 . 1 . Artifact . | . . . . . . . . . . . . . . . . . . Weapon 119 | 2 1 1 1 1 12 5 2 5 4 15 3 8 17 17 4 21 . Energy Gun 13 | 2 1 . . . 1 1 . . . 1 . . . 4 1 2 . Energy Cannon 12 | . . . . . . . . . . . . . . 6 . 6 . Ballistic Gun 44 | . . 1 . 1 6 2 2 2 3 6 2 5 7 . 1 6 . Ballistic Cannon 7 | . . . . . . . . . . 2 . . 2 . 1 2 . Launcher 5 | . . . . . . . . . . . . . 1 3 . 1 . Special Weapon 13 | . . . 1 . . . . . . . . 2 5 3 1 1 . Impact Weapon 20 | . . . . . 5 2 . 3 1 3 1 1 2 . . 2 . Slashing Weapon . | . . . . . . . . . . . . . . . . . . Piercing Weapon . | . . . . . . . . . . . . . . . . . . Special Melee Weapon 5 | . . . . . . . . . . 3 . . . 1 . 1 . Unidentified Prototypes 4 | . . . . . 3 . 1 . . . . . . . . . . Parts Lost 106 | . . 2 . 2 4 . . 2 1 11 2 3 22 11 5 39 2 Power 23 | . . 1 . 1 1 . . 1 . 4 1 1 4 4 2 3 . Propulsion 31 | . . . . 1 2 . . 1 . 5 . 1 7 4 1 8 1 Utility 19 | . . . . . 1 . . . . . . . 6 1 . 11 . Weapon 33 | . . 1 . . . . . . 1 2 1 1 5 2 2 17 1 Highest Loss Streak 19 | . . 1 . 1 3 . . 1 1 4 1 2 7 6 3 19 1 Average Slot Usage (%) 87 | . 100 99 98 86 91 100 96 96 100 97 93 96 94 91 87 53 7 Engine 4 | . 14 13 14 13 7 3 . . . . . 9 10 11 8 . . Core 6 | . . . . . 1 5 15 14 15 14 18 8 3 . . . . Treads 1 | . . . . . . . . . . . . . . 6 16 1 . Leg 20 | . 28 28 28 28 26 21 30 27 30 29 26 25 23 7 10 2 . Wheel 2 | . . . . . 7 14 . . . . . . 1 9 . . . Device 7 | . 14 4 . 11 7 9 11 13 7 5 5 1 3 5 8 11 . Storage 17 | . . 9 14 14 17 18 15 15 23 23 20 20 18 19 15 14 . Processor 5 | . 14 14 14 2 8 9 7 7 7 7 6 6 3 1 . . . Hackware 1 | . . . . . . . . . . 1 . 4 7 3 1 1 . Energy Gun 2 | . 28 22 2 . 1 8 . . . . . . . 1 9 3 . Energy Cannon 2 | . . . . . . . . . . . . . . 7 1 10 . Ballistic Gun 7 | . . 5 14 13 8 7 7 14 10 7 11 12 7 . 2 1 3 Special Weapon 1 | . . . 9 1 . . . . . . . 4 3 2 . . . Impact Weapon 1 | . . . . . 4 1 6 . 4 1 . . 1 . . . . Naked Turns 18 | . . . . . . . . . . . . . . . . . 18 Heaviest Build 140 | 8 8 39 37 48 64 78 82 97 97 101 120 127 140 138 125 125 3 Greatest Support 112 | 20 20 20 20 20 57 50 50 50 61 61 65 65 76 112 112 85 5 Greatest Overweight (x) 23 | . . 1 1 2 20 5 1 2 2 5 2 2 8 7 4 23 . Average Overweight (x) 1 | . . . . 1 . 1 1 1 1 1 1 1 1 1 . 6 . Largest Inventory Capacity 32 | 4 4 12 12 12 18 20 20 26 26 26 26 26 32 32 24 24 4 Average Capacity 20 | 4 4 8 11 12 17 19 20 20 26 26 26 26 26 27 24 17 4 Most Carried 31 | 4 4 9 12 12 18 20 20 26 26 26 26 26 26 31 24 24 4 Average Carried 19 | 2 3 6 10 9 15 19 19 20 26 25 25 25 22 23 21 15 4 Final Capacity 32 | 4 4 10 12 12 18 20 20 26 26 26 26 26 32 24 24 4 4 Final Carried 26 | 4 4 9 12 11 18 20 20 26 26 26 26 26 17 23 21 4 4 Class Distribution -------------------- 29% | Bothacker-Mutant 23% | Scavenger-Mutant 11% | Scavenger-Tank 10% | Mutant 7% | Botlord-Mutant 6% | Hauler-Mutant 3% | Hauler-Skirmisher Dominant Class ---------------- Mutant | -10/Materials Scavenger-Mutant | -10/Mines Scavenger-Mutant | -10/Exiles Mutant | -9/Mines Scavenger-Mutant | -8/Materials Hauler-Skirmisher | -8/Garrison Bothacker-Mutant | -7/Factory Bothacker-Mutant | -7/Garrison Bothacker-Mutant | -7/Factory Bothacker-Mutant | -7/Garrison Bothacker-Gunner | -6/Factory Bothacker-Mutant | -6/Garrison Botlord-Mutant | -5/Factory Bothacker-Mutant | -5/Extension Scavenger-Mutant | -4/Factory Scavenger-Tank | -4/Garrison Mutant | -4/Factory Resources | -11 -10 -10 -10 -9 -8 -8 -7 -7 -7 -7 -6 -6 -5 -5 -4 -4 -4 ----------- Run | Scr Mat Min Exi Min Mat Gar Fac Gar Fac Gar Fac Gar Fac Ext Fac Gar Fac Matter Collected 6434 | 270 10 70 . 102 442 280 49 294 120 821 283 326 1618 1093 250 406 . Remotely . | . . . . . . . . . . . . . . . . . . Salvage Created 7761 | 191 51 179 . 302 447 337 49 303 120 464 1040 189 1401 1665 516 507 . Parts 359 | 30 5 12 . 17 33 20 3 12 7 23 45 8 56 61 16 11 . Haulers Intercepted 7 | . . . . . 2 . . . . . . . . 5 . . . Recyclers Shooed 4 | . . . . . . . . . . . 3 . . 1 . . . Parts Field Recycled . | . . . . . . . . . . . . . . . . . . Retrieved Matter . | . . . . . . . . . . . . . . . . . . Parts Self-Destructed . | . . . . . . . . . . . . . . . . . . Prevented . | . . . . . . . . . . . . . . . . . . Kills | -11 -10 -10 -10 -9 -8 -8 -7 -7 -7 -7 -6 -6 -5 -5 -4 -4 -4 ------- Run | Scr Mat Min Exi Min Mat Gar Fac Gar Fac Gar Fac Gar Fac Ext Fac Gar Fac Combat Hostiles Destroyed 140 | . 3 7 . 8 9 10 1 6 4 14 19 3 21 15 7 13 . Melee 4 | . . . . . 1 . . . . . . . 2 . . 1 . Guns 97 | . 3 7 . 8 8 10 1 6 4 7 17 3 13 2 2 6 . Cannons 17 | . . . . . . . . . . 7 2 . 2 3 1 2 . AOE 11 | . . . . . . . . . . . . . . 8 . 3 . Classes Destroyed 15 | 1 1 1 . 2 5 . 1 . . 1 1 . 1 1 . . . Worker 10 | . . . . . 1 . . . . . 1 . 3 5 . . . Builder 11 | . . . . . . . . . . . 1 . 1 8 1 . . Tunneler 13 | 9 . . . . 2 . . . . . . . . 2 . . . Hauler 7 | . . . . . 2 . . . . . . . . 5 . . . Recycler 4 | . . . . . . . . . . . . . 1 3 . . . Watcher 5 | . . . . . 2 . . . . . 1 . . 2 . . . Swarmer 32 | . 3 5 . . 4 4 . . 3 5 3 . . . . 5 . Grunt 71 | . . 2 . 6 2 6 . 6 . 7 7 1 11 12 4 7 . Brawler 5 | . . . . . . . . . . 1 2 1 . 1 . . . Duelist 4 | . . . . 1 . . . . . . 2 1 . . . . . Sentry 6 | . . . . . 2 . . . . 1 2 . 1 . . . . Demolisher 1 | . . . . 1 . . . . . . . . . . . . . Hunter 6 | . . . . . 1 . . . 1 . . . 2 . 2 . . Programmer 12 | . . . . . . . 1 . . . 3 . 7 . 1 . . Behemoth 3 | . . . . . . . . . . . . . . 2 . 1 . Best Kill Streak 7 | 3 2 3 . 3 7 4 1 2 3 4 5 2 5 7 4 3 . Combat Bots Only 5 | . 2 3 . 3 5 4 1 2 3 4 4 2 4 4 4 3 . Max Kills in Single Turn 5 | 1 1 2 . 1 1 2 1 1 1 1 1 1 1 5 1 2 . Gunslinging 1 | . . 1 . . . 1 . . . . . . . . . . . Exploded 3 | . . . . . . . . . . . . . . 3 . 2 . Melee 1 | . . . . . 1 . . . . . . . 1 . . 1 . Uniques/NPCs Destroyed . | . . . . . . . . . . . . . . . . . . Combat | -11 -10 -10 -10 -9 -8 -8 -7 -7 -7 -7 -6 -6 -5 -5 -4 -4 -4 -------- Run | Scr Mat Min Exi Min Mat Gar Fac Gar Fac Gar Fac Gar Fac Ext Fac Gar Fac Damage Taken 17031 | 2 96 368 . 243 680 505 30 535 350 1628 457 1017 3746 2053 973 4190 158 Core 2570 | . 35 92 . 92 70 42 . 46 31 131 80 155 424 211 37 1014 110 Absorbed by Shields . | . . . . . . . . . . . . . . . . . . Core Remaining (%) 61 | 100 . . . 12 . 79 . . . 70 . 72 . 36 . . . Volleys Fired 535 | 16 8 23 . . 35 30 4 30 18 38 8 26 128 94 23 54 . Largest 4 | 2 2 2 . . 2 2 2 2 2 2 3 2 3 3 3 4 . Hottest 324 | 90 90 80 . . 68 70 50 50 50 80 95 58 123 227 211 324 . Shots Fired 1014 | 32 16 46 . 25 43 60 8 59 35 67 106 44 209 116 46 102 . Gun 706 | 32 16 46 . 25 43 60 8 59 35 40 100 32 114 6 39 51 . Cannon 183 | . . . . . . . . . . 27 6 . 45 69 4 32 . Launcher 38 | . . . . . . . . . . . . . 4 18 . 16 . Special 87 | . . . . . . . . . . . . 12 46 23 3 3 . Kinetic 603 | . . 8 . 25 41 30 8 59 35 61 106 32 159 1 2 36 . Thermal 48 | 16 8 . . . . . . . . 6 . . . . . 18 . Explosive 38 | . . . . . . . . . . . . . 4 18 . 16 . Electromagnetic 238 | 16 8 38 . . 2 30 . . . . . . . 74 41 29 . Robot Hit Streak 25 | 3 3 5 . 22 25 13 4 6 6 7 17 15 15 17 11 9 . Robot Miss Streak 7 | 2 2 5 . 1 4 6 1 7 4 7 3 2 6 5 3 4 . Penetration Max 2 | . . . . . . . . . . . . 1 2 . . . . Secondary Targets 4 | . . 1 . . . 1 . . . . . . 1 . 1 . . Max Gunslinging Chain 1 | . . 1 . . . 1 . . . . . . 1 . 1 . . Autonomous 131 | . . . . 25 5 . . . . . 87 14 . . . . . Shots Hit Robots 747 | 17 7 25 . 24 50 42 5 27 15 64 87 37 170 83 36 58 . Core Hits 405 | 9 3 12 . 11 22 22 2 13 9 49 51 13 67 76 15 30 1 Critical Hits 10 | . . . . 1 . . . . . . 1 . 3 1 . 4 . Critical Kills 2 | . . . . . . . . . . . . . 1 . . 1 . Critical Parts Destroyed 6 | . . . . 1 . . . . . . 1 . 1 1 . 2 . Melee Attacks 116 | . . . . . 23 5 . 11 2 20 1 2 46 . . 6 . Impact 98 | . . . . . 23 5 . 11 2 6 1 2 46 . . 2 . Slashing . | . . . . . . . . . . . . . . . . . . Piercing . | . . . . . . . . . . . . . . . . . . Sneak Attacks 6 | . . . . . 3 . . . . 2 . . 1 . . . . Combat Hostiles 1 | . . . . . . . . . . 1 . . . . . . . Follow-up Attacks . | . . . . . . . . . . . . . . . . . . Damage Inflicted 22238 | 234 98 258 . 774 1373 605 105 602 285 846 2650 736 4257 5824 978 2608 5 Guns 10851 | 228 98 250 . 767 796 605 105 602 285 373 2495 711 2037 126 775 598 . Cannons 3933 | . . . . . . . . . . 473 139 . 818 1756 124 623 . Explosions 5396 | . . . . . . . . . . . . . 80 3885 76 1355 . Melee 1894 | . . . . . 577 . . . . . . 25 1261 . . 31 . Ramming 164 | 6 . 8 . 7 . . . . . . 16 . 61 57 3 1 5 Kinetic 10421 | . . 42 . 767 756 409 105 602 285 728 2634 711 2855 . 50 477 . Thermal 1002 | 138 76 . . . . . . . . 118 . . . 253 76 341 . Explosive 5067 | . . . . . . . . . . . . . 80 3632 . 1355 . Electromagnetic 3690 | 90 22 208 . . 40 196 . . . . . . . 1882 849 403 . Impact 1894 | . . . . . 577 . . . . . . 25 1261 . . 31 . Slashing . | . . . . . . . . . . . . . . . . . . Piercing . | . . . . . . . . . . . . . . . . . . Highest Corruption 11 | . . . . . . . . . . . 2 2 11 11 . 10 10 Average Corruption 6 | . . . . . . . . . . . 1 2 5 11 . 10 10 Corruption Purged . | . . . . . . . . . . . . . . . . . . Effects 219 | . . . . . . . . . . . 3 16 60 124 . 8 8 Message Errors 56 | . . . . . . . . . . . 1 6 8 39 . 1 1 Matter Fused 37 | . . . . . . . . . . . . . 12 23 . 1 1 Heat Flow Errors 22 | . . . . . . . . . . . . 3 5 14 . . . Energy Discharges 24 | . . . . . . . . . . . 1 4 7 10 . . 2 Parts Rejected 4 | . . . . . . . . . . . . . 1 2 . 1 . Data Loss (minor) 18 | . . . . . . . . . . . 1 2 7 7 . 1 . Data Loss (major) 4 | . . . . . . . . . . . . . . 4 . . . Misfires 3 | . . . . . . . . . . . . . . 3 . . . Alerts 4 | . . . . . . . . . . . . . 1 2 . 1 . Misdirections 15 | . . . . . . . . . . . . . 1 10 . . 4 Targeting Errors 29 | . . . . . . . . . . . . 1 17 8 . 3 . Weapon Failures 3 | . . . . . . . . . . . . . 1 2 . . . Overload Shots . | . . . . . . . . . . . . . . . . . . Overflow Damage 697 | . . . . . 167 . . . . . . . 202 175 59 94 . Projectiles 95 | . . . . . . . . . . . . . 58 37 . . . Explosions 285 | . . . . . . . . . . . . . . 138 59 88 . Melee 317 | . . . . . 167 . . . . . . . 144 . . 6 . Knockbacks 37 | . . . . 1 7 . . . . 8 . . 20 . . 1 . Impact 13 | . . . . 1 7 . . . . . . . 5 . . . . Kinetic 19 | . . . . . . . . . . 8 . . 10 . . 1 . Secondary 5 | . . . . . . . . . . . . . 5 . . . . Self-Inflicted Damage 373 | 2 . 3 . 3 . . . 73 . 80 7 . 42 8 100 53 2 Shots 5 | . . . . . . . . 1 . 1 . . 1 . 1 1 . Rammed 20 | 2 . 2 . 2 . . . . . . 1 . 3 6 . 2 2 Targets Rammed 28 | 3 . 2 . 2 . . . . . . 2 . 7 7 1 2 2 Kicked 6 | 1 . . . . . . . . . . 1 . 4 . . . . Crushed 2 | . . . . . . . . . . . . . . 1 1 . . Highest Temperature 448 | 120 180 115 . . . 43 . . 30 183 165 268 411 448 . 239 . Average Temperature 77 | 35 78 44 . . . 16 . . 14 50 62 98 92 88 . 95 . Received Heat Transfer 4008 | . . 99 . 12 252 225 . 261 . 477 108 450 918 645 87 435 39 Effects 12 | . . . . . . . . . . . . . 11 . . 1 . Shutdowns 4 | . . . . . . . . . . . . . 4 . . . . Energy Bleed 4 | . . . . . . . . . . . . . 3 . . 1 . Interference 2 | . . . . . . . . . . . . . 2 . . . . Short Circuit 1 | . . . . . . . . . . . . . 1 . . . . Damage (minor) 1 | . . . . . . . . . . . . . 1 . . . . Siege Activations . | . . . . . . . . . . . . . . . . . . Robots Corrupted 10 | . . . . . . . . . . . . . . 6 4 . . Combat Hostiles 6 | . . . . . . . . . . . . . . 2 4 . . Parts Fried 36 | . . 1 . . 2 . . . . . . . 3 17 7 6 . Impact Corruptions 16 | . . . . . 7 . . . . . . . 8 . . 1 . Robots Melted . | . . . . . . . . . . . . . . . . . . Combat Hostiles . | . . . . . . . . . . . . . . . . . . Parts Melted 2 | 1 . . . . . . . . . 1 . . . . . . . Heat Transferred 1802 | 407 222 . . . . . . . . 275 . . . 300 50 548 . Parts Sabotaged . | . . . . . . . . . . . . . . . . . . Parts Stolen . | . . . . . . . . . . . . . . . . . . Parts Stripped . | . . . . . . . . . . . . . . . . . . Power Chain Reactions 4 | . . . . . . . . . . . . . . 3 1 . . Missiles Intercepted . | . . . . . . . . . . . . . . . . . . Alert | -11 -10 -10 -10 -9 -8 -8 -7 -7 -7 -7 -6 -6 -5 -5 -4 -4 -4 ------- Run | Scr Mat Min Exi Min Mat Gar Fac Gar Fac Gar Fac Gar Fac Ext Fac Gar Fac Peak Influence 698 | 40 103 159 . 230 180 698 366 290 197 692 619 509 393 394 449 413 189 Initial 433 | . 3 39 . . 11 3 366 35 151 . 363 433 266 187 192 174 169 Average 244 | 15 65 52 . 130 66 400 267 135 80 295 434 486 229 73 338 361 178 Maximum Alert Level 2 | . . . . 1 . 2 1 1 . 2 2 2 1 1 2 2 . Low Security (%) 45 | 100 100 100 . 66 100 23 41 53 100 47 . . 40 90 14 1 100 Level 1 34 | . . . . 33 . 13 58 46 . 8 32 . 59 9 58 98 . Level 2 19 | . . . . . . 62 . . . 44 67 100 . . 27 . . Level 3 . | . . . . . . . . . . . . . . . . . . Level 4 . | . . . . . . . . . . . . . . . . . . Level 5 . | . . . . . . . . . . . . . . . . . . High Security . | . . . . . . . . . . . . . . . . . . Max Security . | . . . . . . . . . . . . . . . . . . Squads Dispatched 29 | . . . . . 1 . 1 . 1 . 11 . 8 6 1 . . Investigation 3 | . . . . . 1 . . . . . . . 2 . . . . Extermination 7 | . . . . . . . 1 . 1 . 1 . 4 . . . . Reinforcement 10 | . . . . . . . . . . . 1 . 2 6 1 . . Assault . | . . . . . . . . . . . . . . . . . . Garrison 9 | . . . . . . . . . . . 9 . . . . . . Intercept . | . . . . . . . . . . . . . . . . . . Construction Impeded 5 | . . . . . . . . . . . 1 . 1 3 . . . Haulers Reinforced 1 | . . . . . . . . . . . . . 1 . . . . Stealth | -11 -10 -10 -10 -9 -8 -8 -7 -7 -7 -7 -6 -6 -5 -5 -4 -4 -4 --------- Run | Scr Mat Min Exi Min Mat Gar Fac Gar Fac Gar Fac Gar Fac Ext Fac Gar Fac Distress Signals 9 | . . . . . 3 . . . . . 1 . 2 3 . . . Communications Jammed . | . . . . . . . . . . . . . . . . . . Distress Signals . | . . . . . . . . . . . . . . . . . . Times Spotted 278 | . 5 12 . 10 21 12 1 7 4 41 23 15 52 33 13 23 6 Peak Tracking Total 9 | . 4 4 . 3 5 6 1 4 3 7 4 9 6 6 5 6 6 Tactical Retreats 44 | . 1 3 . 1 1 2 . 1 . 17 2 1 5 2 3 5 . Traps | -11 -10 -10 -10 -9 -8 -8 -7 -7 -7 -7 -6 -6 -5 -5 -4 -4 -4 ------- Run | Scr Mat Min Exi Min Mat Gar Fac Gar Fac Gar Fac Gar Fac Ext Fac Gar Fac Traps Triggered 13 | . . . . . 1 4 1 3 . 1 . 2 1 . . . . Indirectly . | . . . . . . . . . . . . . . . . . . Trap Hack Attempts . | . . . . . . . . . . . . . . . . . . Triggered . | . . . . . . . . . . . . . . . . . . Disarmed . | . . . . . . . . . . . . . . . . . . Reprogrammed . | . . . . . . . . . . . . . . . . . . Reused 10 | . . . . . . . . 2 . 5 . . . . . 3 . Traps Reconfigurated 35 | . . . . . . 9 8 3 . 11 . . . . . 4 . Traps Extracted . | . . . . . . . . . . . . . . . . . . Installed . | . . . . . . . . . . . . . . . . . . Triggered 10 | . . . . . . . . 2 . 5 . . . . . 3 . Machines | -11 -10 -10 -10 -9 -8 -8 -7 -7 -7 -7 -6 -6 -5 -5 -4 -4 -4 ---------- Run | Scr Mat Min Exi Min Mat Gar Fac Gar Fac Gar Fac Gar Fac Ext Fac Gar Fac Machines Disabled 25 | . 1 . . 3 . 2 . 4 . 5 . 1 5 2 1 1 . Max in Single Turn 3 | . 1 . . 1 . 1 . 2 . 2 . 1 3 1 1 1 . Garrison Access 1 | . . . . . . . 1 . . . . . . . . . . Garrison Relay 9 | . . . . . . 2 . 2 . 3 . 1 . . . 1 . Phase Generator 2 | . . . . . . . . 1 . 1 . . . . . . . Machines Sabotaged . | . . . . . . . . . . . . . . . . . . Garrisons Compromised . | . . . . . . . . . . . . . . . . . . Overloaded Fab Kills . | . . . . . . . . . . . . . . . . . . Fab Network Shutdowns . | . . . . . . . . . . . . . . . . . . Hacking | -11 -10 -10 -10 -9 -8 -8 -7 -7 -7 -7 -6 -6 -5 -5 -4 -4 -4 --------- Run | Scr Mat Min Exi Min Mat Gar Fac Gar Fac Gar Fac Gar Fac Ext Fac Gar Fac Machines Accessed 19 | . . 1 1 . 2 . 4 . 2 . 3 . 4 1 1 . . Terminals 6 | . . . . . 1 . 1 . . . 1 . 2 1 . . . Fabricators 2 | . . . . . . . . . . . . . 2 . . . . Repair Stations 2 | . . . . . . . . . 1 . 1 . . . . . . Recycling Units . | . . . . . . . . . . . . . . . . . . Scanalyzers 1 | . . . . . . . 1 . . . . . . . . . . Garrison Access 6 | . . . . . 1 . 2 . 1 . 1 . . . 1 . . Total Hacks 38 | . . 1 1 . 4 . 14 . 2 . 5 . 9 1 1 . . Successful 26 | . . 1 1 . 3 . 12 . 1 . 2 . 4 1 1 . . Failed 12 | . . . . . 1 . 2 . 1 . 3 . 5 . . . . Catastrophic 3 | . . . . . . . 1 . . . 1 . 1 . . . . Database Lockouts . | . . . . . . . . . . . . . . . . . . Manual 15 | . . . 1 . 2 . 2 . . . 2 . 8 . . . . Terminals 12 | . . . . . 3 . 2 . . . 2 . 4 1 . . . Fabricators 5 | . . . . . . . . . . . . . 5 . . . . Repair Stations 3 | . . . . . . . . . 1 . 2 . . . . . . Recycling Units . | . . . . . . . . . . . . . . . . . . Scanalyzers 9 | . . . . . . . 9 . . . . . . . . . . Garrison Access 7 | . . . . . 1 . 3 . 1 . 1 . . . 1 . . Terminal Hacks 5 | . . 1 1 . 1 . . . . . . . 1 1 . . . Robot Analysis 1 | . . . . . 1 . . . . . . . . . . . . Open Door 3 | . . 1 . . . . . . . . . . 1 1 . . . EX-Prototype ID Bank 1 | . . . 1 . . . . . . . . . . . . . . Fabricator Hacks . | . . . . . . . . . . . . . . . . . . Repair Station Hacks 1 | . . . . . . . . . . . 1 . . . . . . Scan Component 1 | . . . . . . . . . . . 1 . . . . . . Recycling Unit Hacks . | . . . . . . . . . . . . . . . . . . Scanalyzer 9 | . . . . . . . 9 . . . . . . . . . . Insert Component 5 | . . . . . . . 5 . . . . . . . . . . Analyze 4 | . . . . . . . 4 . . . . . . . . . . Garrison Access Hacks 7 | . . . . . 1 . 3 . 1 . 1 . . . 1 . . Unlock Access 6 | . . . . . 1 . 2 . 1 . 1 . . . 1 . . Seal Access 1 | . . . . . . . 1 . . . . . . . . . . Unauthorized Hacks 4 | . . . . . 1 . . . . . . . 3 . . . . Terminals 2 | . . . . . 1 . . . . . . . 1 . . . . Track 1 | . . . . . . . . . . . . . 1 . . . . Botnet 1 | . . . . . 1 . . . . . . . . . . . . Fabricators 2 | . . . . . . . . . . . . . 2 . . . . Report 1 | . . . . . . . . . . . . . 1 . . . . Prioritize 1 | . . . . . . . . . . . . . 1 . . . . Repair Stations . | . . . . . . . . . . . . . . . . . . Recycling Units . | . . . . . . . . . . . . . . . . . . Scanalyzers . | . . . . . . . . . . . . . . . . . . Garrison Access . | . . . . . . . . . . . . . . . . . . Data Cores Recovered . | . . . . . . . . . . . . . . . . . . Used . | . . . . . . . . . . . . . . . . . . Hacking Detections 12 | . . . . . 1 . 3 . 1 . 3 . 3 . 1 . . Full Trace Events 1 | . . . . . . . . . . . . . 1 . . . . Feedback Events . | . . . . . . . . . . . . . . . . . . Feedback Blocked . | . . . . . . . . . . . . . . . . . . Robot Schematics Acquired . | . . . . . . . . . . . . . . . . . . Robots Built . | . . . . . . . . . . . . . . . . . . Matter . | . . . . . . . . . . . . . . . . . . Time . | . . . . . . . . . . . . . . . . . . Total Robot Build Rating . | . . . . . . . . . . . . . . . . . . Part Schematics Acquired 4 | . . . . . . . 4 . . . . . . . . . . Parts Built . | . . . . . . . . . . . . . . . . . . Matter . | . . . . . . . . . . . . . . . . . . Time . | . . . . . . . . . . . . . . . . . . Total Part Build Rating . | . . . . . . . . . . . . . . . . . . Parts Repaired . | . . . . . . . . . . . . . . . . . . Time . | . . . . . . . . . . . . . . . . . . Parts Recycled . | . . . . . . . . . . . . . . . . . . Recycled Matter . | . . . . . . . . . . . . . . . . . . Retrieved Matter . | . . . . . . . . . . . . . . . . . . Retrieved Components . | . . . . . . . . . . . . . . . . . . Parts Scanalyzed 4 | . . . . . . . 4 . . . . . . . . . . Part Schematics Acquired 4 | . . . . . . . 4 . . . . . . . . . . Parts Damaged 1 | . . . . . . . 1 . . . . . . . . . . Bothacking | -11 -10 -10 -10 -9 -8 -8 -7 -7 -7 -7 -6 -6 -5 -5 -4 -4 -4 ------------ Run | Scr Mat Min Exi Min Mat Gar Fac Gar Fac Gar Fac Gar Fac Ext Fac Gar Fac Used RIF Installer 5 | . . . . . . 1 . 1 . 1 . 1 . . . 1 . Command Fork 1 | . . . . . . . . . . 1 . . . . . . . Signal Jammer 1 | . . . . . . . . . . . . . . . . 1 . Watcher Feeds 1 | . . . . . . . . . . . . 1 . . . . . Program Shield 1 | . . . . . . . . 1 . . . . . . . . . Robots Hacked 52 | . . . . . . . . . . 7 . 6 21 12 2 4 . Non-combat 20 | . . . . . . . . . . . . . 11 9 . . . Combat 32 | . . . . . . . . . . 7 . 6 10 3 2 4 . Robot Hacks Applied 60 | . . . . . . . . . . 9 . 7 23 15 2 4 . parse_system 2 | . . . . . . . . . . 1 . . 1 . . . . generate_echo 1 | . . . . . . . . . . . . . . 1 . . . deconstruct_machine 1 | . . . . . . . . . . . . . 1 . . . . map_walls 1 | . . . . . . . . . . . . . . 1 . . . randomize_corridors 1 | . . . . . . . . . . . . . . 1 . . . drop_inventory 8 | . . . . . . . . . . . . . 2 6 . . . locate_stockpiles 1 | . . . . . . . . . . . . . 1 . . . . ignore_parts 1 | . . . . . . . . . . . . . 1 . . . . map_route 3 | . . . . . . . . . . . . . 3 . . . . mark_security 2 | . . . . . . . . . . . . . 1 1 . . . find_garrison 1 | . . . . . . . . . . . . . 1 . . . . link_fov 1 | . . . . . . . . . . . . . 1 . . . . disrupt_area 1 | . . . . . . . . . . . . . . 1 . . . spike_heat 1 | . . . . . . . . . . . . 1 . . . . . overload_power 6 | . . . . . . . . . . 1 . 1 1 1 . 2 . reboot_system 9 | . . . . . . . . . . 1 . 2 2 2 2 . . streamctrl_high 5 | . . . . . . . . . . 2 . 2 1 . . . . formatsys_high 15 | . . . . . . . . . . 4 . 1 7 1 . 2 . Relay Couplers Released 34 | . . . . . . 8 . 8 . 12 . 3 . . . 3 . Machine Destruction 34 | . . . . . . 8 . 8 . 12 . 3 . . . 3 . Attached 20 | . . . . . . . . . . 3 . 3 9 3 1 1 . Robots Rewired . | . . . . . . . . . . . . . . . . . . Allies Hacked . | . . . . . . . . . . . . . . . . . . Hacks Repelled . | . . . . . . . . . . . . . . . . . . Allies | -11 -10 -10 -10 -9 -8 -8 -7 -7 -7 -7 -6 -6 -5 -5 -4 -4 -4 -------- Run | Scr Mat Min Exi Min Mat Gar Fac Gar Fac Gar Fac Gar Fac Ext Fac Gar Fac Total Allies 26 | . . . . 1 . . . . . 6 . 6 10 1 . 2 . Largest Group 4 | . . . . 1 1 . . . . 3 . 2 4 1 . 2 . Highest-Rated Group 69 | . . . . 26 26 . . . . 48 . 58 69 49 . 24 . Highest-Rated Ally 49 | . . . . 26 26 . . . . 16 . 32 49 49 . 12 . Total Orders 22 | . . . . . 1 . . 19 . 1 . . 1 . . . . STAY 1 | . . . . . . . . . . . . . 1 . . . . GUARD 1 | . . . . . . . . . . 1 . . . . . . . EXPLORE 16 | . . . . . 1 . . 15 . . . . . . . . . RETURN 4 | . . . . . . . . 4 . . . . . . . . . Ally Attacks 120 | . . . . . 1 . . 15 . 18 . 13 66 4 . 3 . Total Damage 1745 | . . . . . . . . . . 216 . 197 1087 196 . 49 . Kills 15 | . . . . . . . . . . 2 . 2 11 . . . . Allies Corrupted 1 | . . . . . . . . . . . . . 1 . . . . Allies Melted 1 | . . . . . . . . . . . . . 1 . . . . Intel | -11 -10 -10 -10 -9 -8 -8 -7 -7 -7 -7 -6 -6 -5 -5 -4 -4 -4 ------- Run | Scr Mat Min Exi Min Mat Gar Fac Gar Fac Gar Fac Gar Fac Ext Fac Gar Fac Robot Analysis Total 1 | . . . . . 1 . . . . . . . . . . . . Derelict Logs Recovered 1 | . . 1 . . . . . . . . . . . . . . . Drone Launches 20 | . . . . . 1 . . 19 . . . . . . . . . Drone Recoveries 4 | . . . . . . . . 4 . . . . . . . . . Exploration | -11 -10 -10 -10 -9 -8 -8 -7 -7 -7 -7 -6 -6 -5 -5 -4 -4 -4 ------------- Run | Scr Mat Min Exi Min Mat Gar Fac Gar Fac Gar Fac Gar Fac Ext Fac Gar Fac Turns Passed 28605 | 680 122 1412 1250 472 1324 1501 806 2539 869 4436 1148 1501 2385 2681 403 4925 151 Spaces Moved 11484 | 257 79 927 852 244 780 636 318 1114 477 1504 571 785 1114 702 170 598 356 Core 216 | 6 . . . . 3 . . . . . . . . . . 183 24 Treads 423 | . . . . . . . . . . . . . . 237 161 25 . Legs 9435 | 251 79 927 852 244 546 218 318 1114 477 1504 571 785 939 266 9 335 . Wheels 1023 | . . . . . 231 418 . . . . . . 175 199 . . . Hover . | . . . . . . . . . . . . . . . . . . Flight 387 | . . . . . . . . . . . . . . . . 55 332 Fastest Speed 40 | 50 120 120 120 150 100 100 150 150 152 152 150 150 116 116 150 40 40 Average Speed 160 | 118 120 138 145 176 132 117 150 160 169 167 160 161 148 151 175 386 40 Slowest Speed 1200 | 120 120 150 150 180 1050 270 150 180 180 270 180 180 360 330 240 1200 50 Overloaded Moves . | . . . . . . . . . . . . . . . . . . Propulsion Burnouts . | . . . . . . . . . . . . . . . . . . Robots Hopped 1 | . . . . . . . . . . . . . . . . . 1 Cave-ins Triggered 1 | . . . . . . . . . . . . . . . . 1 . Exploration Rate (%) 37 | 8 22 99 79 40 36 50 7 87 10 88 7 46 17 28 4 43 6 Regions Visited 17 Branch Regions 4 Pre-discovered Areas 2 | . . 1 . 1 . . . . . . . . . . . . . Known Exits Taken 5 | . . . . . 1 . 1 . 1 . 1 . . . 1 . . Unknown Exits Taken 7 | 1 1 1 1 1 . . . . . . . . 1 1 . . . Scrap Searched 3 | . . 2 . 1 . . . . . . . . . . . . . Spaces Dug 29 | . . . . . 4 . . 5 2 . 1 . 17 . . . . Terrain Destroyed 567 | . . . . 12 6 . . 84 2 49 40 . 79 167 4 124 . Melee 12 | . . . . . 4 . . 5 2 . 1 . . . . . . Projectile 83 | . . . . 12 2 . . . . . 39 . 21 . . 9 . AOE 472 | . . . . . . . . 79 . 49 . . 58 167 4 115 . Terrain Rammed . | . . . . . . . . . . . . . . . . . . Walls Destroyed . | . . . . . . . . . . . . . . . . . . Machines Disabled . | . . . . . . . . . . . . . . . . . . Actions | -11 -10 -10 -10 -9 -8 -8 -7 -7 -7 -7 -6 -6 -5 -5 -4 -4 -4 --------- Run | Scr Mat Min Exi Min Mat Gar Fac Gar Fac Gar Fac Gar Fac Ext Fac Gar Fac Total 20720 | 596 90 1008 863 286 987 1317 643 1807 510 3336 791 987 1592 2211 232 3102 362 Wait 7859 | 310 . 42 2 25 78 579 297 601 1 1701 168 134 217 1295 20 2384 5 Move 11462 | 256 78 926 851 243 779 634 317 1112 477 1502 571 783 1113 701 169 596 354 Hop 1 | . . . . . . . . . . . . . . . . . 1 Pick Up 156 | 4 1 4 4 3 15 9 6 11 . 10 10 6 14 37 6 16 . Fast Attach 77 | 7 1 1 . . 12 4 1 3 1 12 3 2 10 13 3 4 . Attach 96 | . . 2 1 3 11 . 3 3 . 1 4 6 20 14 6 22 . Detach 24 | . . 1 1 . 8 2 1 . . 1 2 1 3 2 . 2 . Swap 169 | . . 5 1 5 11 13 4 12 8 29 8 11 27 21 2 12 . Drop 127 | . 2 2 3 5 15 12 5 9 3 13 14 6 7 27 2 2 . Fire 535 | 16 8 23 . . 35 30 4 30 18 38 8 26 128 94 23 54 . Melee 116 | . . . . . 23 5 . 11 2 20 1 2 46 . . 6 . Ram 8 | . . . . . . . . . . . . . . 4 . 2 2 Kick 16 | 3 . 2 . 2 . . . . . . 2 . 7 . . . . Crush 4 | . . . . . . . . . . . . . . 3 1 . . Escape Stasis 64 | . . . . . . 29 5 15 . 5 . 10 . . . . . Rewire 6 | . . . . . . . . . . 4 . . . . . 2 . Trap . | . . . . . . . . . . . . . . . . . . Miscellaneous . | . . . . . . . . . . . . . . . . . . Route ------- -11/Scrapyard -10/Materials -10/Mines (discovered 3 exits: [*Mat x2] / *Exi) -10/Exiles (discovered 2 exits: [*Min x2]) -9/Mines -8/Materials (discovered 2 exits: *Fac / Gar) -8/Garrison -7/Factory -7/Garrison (discovered 3 exits: *Fac x3) -7/Factory (discovered 2 exits: [*Low] / Gar) -7/Garrison (discovered 3 exits: *Fac x3) -6/Factory (discovered 2 exits: [*Low] / Gar) -6/Garrison -5/Factory (discovered 2 exits: Fac / *Ext) -5/Extension -4/Factory -4/Garrison -4/Factory History --------- Turn | Location | Event 6 | -11/Scrapyard | Discovered new exit (range 15) 681 | -11/Scrapyard | Entered Materials 682 | -10/Materials | Build established: Mutant 785 | -10/Materials | Discovered new exit (range 7) 803 | -10/Materials | Entered Mines 827 | -10/Mines | Met a Derelict bent on vengeance 1036 | -10/Mines | Found the Drone Emporium 1081 | -10/Mines | Discovered new exit (range 15) 1148 | -10/Mines | Learned location of Storage (-9) 1265 | -10/Mines | Build established: Scavenger-Mutant 1281 | -10/Mines | Found Prototype Device 1529 | -10/Mines | Learned Materials emergency access door positions 1566 | -10/Mines | Build established: Mutant 1638 | -10/Mines | Core integrity fell below 50% 1929 | -10/Mines | Build established: Scavenger-Mutant 1935 | -10/Mines | Discovered new exit (range 8) 2205 | -10/Mines | Deemed a non-threat by the Exiles lab entrance 2206 | -10/Mines | Discovered new exit (range 5) 2215 | -10/Mines | Entered Exiles 2251 | -10/Exiles | Met 8R-AWN 2275 | -10/Exiles | Met EX-HEX 2338 | -10/Exiles | Met EX-DEC 2376 | -10/Exiles | Met EX-BIN 2397 | -10/Exiles | Aligned with FarCom system 2398 | -10/Exiles | Given EX-Vault access code 2437 | -10/Exiles | Opened EX-Vault 2457 | -10/Exiles | Found Trap Reconfigurator 2471 | -10/Exiles | Found Superbattery 2501 | -10/Exiles | Warned to stay clear of 0b10 Research branches 2960 | -10/Exiles | Found AWS/Gauss 3134 | -10/Exiles | Visited The Gauntlet 3276 | -10/Exiles | Discovered new exit (range 10) 3447 | -10/Exiles | Discovered new exit (range 14) 3465 | -10/Exiles | Stole three prototypes: Trap Reconfigurator, Superbattery, AWS/Gauss 3465 | -10/Exiles | Entered Mines 3477 | -9/Mines | Assembled infested the area 3482 | -9/Mines | Assisted by a Guerilla fighting off Assembled 3526 | -9/Mines | Core integrity fell below 20% 3709 | -9/Mines | Escorted by a lone wolf Derelict 3822 | -9/Mines | Build established: Mutant 3912 | -9/Mines | Discovered new exit (range 9) 3937 | -9/Mines | Entered Materials 3937 | -8/Materials | Accompanied by 1 ally 3937 | -8/Materials | Evolved 4 slots: Propulsion x2, Utility x2 3944 | -8/Materials | Identified Bomb Drone Bay 4401 | -8/Materials | Lost 3 parts (1p1n1u) 4900 | -8/Materials | Discovered new exit (range 7) 5259 | -8/Materials | Identified exit to Garrison 5261 | -8/Materials | Entered Garrison 5382 | -8/Garrison | Triggered checkpoint 5432 | -8/Garrison | Garrison Relay disabled 5974 | -8/Garrison | Triggered checkpoint 6042 | -8/Garrison | Build established: Hauler-Skirmisher 6570 | -8/Garrison | Discovered new exit (range 10) 6600 | -8/Garrison | Installed Relay Interface Framework 6701 | -8/Garrison | Garrison Relay disabled 6762 | -8/Garrison | Entered Factory 6762 | -7/Factory | Evolved 2 slots: Power x1, Utility x1 6764 | -7/Factory | FarCom data flow suspended 7056 | -7/Factory | Build established: Scavenger-Mutant 7164 | -7/Factory | Identified exit to Garrison 7420 | -7/Factory | Build established: Bothacker-Mutant 7567 | -7/Factory | Identified exit to Garrison 7568 | -7/Factory | Entered Garrison 8034 | -7/Garrison | Triggered checkpoint 8125 | -7/Garrison | Triggered checkpoint 8164 | -7/Garrison | Triggered checkpoint 8184 | -7/Garrison | Triggered checkpoint 8265 | -7/Garrison | Triggered checkpoint 8299 | -7/Garrison | Garrison Relay disabled 8525 | -7/Garrison | Discovered new exit (range 16) 8922 | -7/Garrison | Phase Generator disabled 8942 | -7/Garrison | Discovered new exit (range 8) 8984 | -7/Garrison | Expanded RIF knowledge: Program Shield 9399 | -7/Garrison | Discovered new exit (range 18) 9948 | -7/Garrison | Triggered checkpoint 9951 | -7/Garrison | Garrison Relay disabled 10107 | -7/Garrison | Entered Factory 10931 | -7/Factory | Discovered new exit (range 18) 10975 | -7/Factory | Identified exit to Garrison 10976 | -7/Factory | Entered Garrison 12182 | -7/Garrison | Triggered checkpoint 12252 | -7/Garrison | Garrison Relay disabled 12404 | -7/Garrison | Triggered checkpoint 12408 | -7/Garrison | Triggered checkpoint 12483 | -7/Garrison | Lost 4 parts (2p1n1w) 13198 | -7/Garrison | Build established: Scavenger-Mutant 13418 | -7/Garrison | Discovered new exit (range 8) 13455 | -7/Garrison | Phase Generator disabled 13521 | -7/Garrison | Garrison Relay disabled 13832 | -7/Garrison | Build established: Hauler-Mutant 14177 | -7/Garrison | Discovered new exit (range 13) 14686 | -7/Garrison | Garrison Relay disabled 14692 | -7/Garrison | Triggered checkpoint 14754 | -7/Garrison | Build established: Scavenger-Mutant 14922 | -7/Garrison | Triggered checkpoint 14996 | -7/Garrison | Discovered new exit (range 15) 15187 | -7/Garrison | Expanded RIF knowledge: Command Fork 15412 | -7/Garrison | Entered Factory 15412 | -6/Factory | Evolved 2 slots: Power x1, Weapon x1 15675 | -6/Factory | Discovered new exit (range 15) 15735 | -6/Factory | Garrison activated, responded to threat 16191 | -6/Factory | Garrison activated, responded to threat 16422 | -6/Factory | Garrison activated, responded to threat 16529 | -6/Factory | Garrison activated, responded to threat 16559 | -6/Factory | Identified exit to Garrison 16560 | -6/Factory | Entered Garrison 16872 | -6/Garrison | Triggered checkpoint 16917 | -6/Garrison | Garrison Relay disabled 16943 | -6/Garrison | Build established: Bothacker-Mutant 16978 | -6/Garrison | Triggered checkpoint 16998 | -6/Garrison | Triggered checkpoint 17396 | -6/Garrison | Discovered new exit (range 10) 17425 | -6/Garrison | Expanded RIF knowledge: Patrol Navigation 17729 | -6/Garrison | Build established: Botlord-Mutant 18061 | -6/Garrison | Entered Factory 18061 | -5/Factory | Evolved 2 slots: Propulsion x1, Utility x1 18795 | -5/Factory | Found Mni. Smartbomb Launcher 18877 | -5/Factory | Discovered new exit (range 9) 19187 | -5/Factory | Discovered new exit (range 108) 19969 | -5/Factory | Lost 7 parts (2p2n3u) 20132 | -5/Factory | Lost 4 parts (1p2n1u) 20142 | -5/Factory | System corruption reached 10% 20216 | -5/Factory | Build established: Bothacker-Mutant 20282 | -5/Factory | Lost 3 parts (1p1n1w) 20446 | -5/Factory | Entered Extension 21771 | -5/Extension | Disrupted transfer network 22048 | -5/Extension | Build established: Hauler-Mutant 22357 | -5/Extension | Spotted B-75 Beast 22380 | -5/Extension | Core integrity fell below 50% 22391 | -5/Extension | Spotted B-75 Beast 22411 | -5/Extension | Destroyed B-75 Beast 22415 | -5/Extension | Destroyed B-75 Beast 22444 | -5/Extension | Lost 6 parts (2p1n1u2w) 22535 | -5/Extension | Build established: Scavenger-Mutant 22937 | -5/Extension | Lost 4 parts (2p2n) 23093 | -5/Extension | Discovered new exit (range 3) 23127 | -5/Extension | Entered Factory 23127 | -4/Factory | Evolved 2 slots: Propulsion x1, Weapon x1 23253 | -4/Factory | Lost 3 parts (1p1n1w) 23457 | -4/Factory | Spotted B-86 Titan 23528 | -4/Factory | Identified exit to Garrison 23530 | -4/Factory | Entered Garrison 23539 | -4/Garrison | Expanded RIF knowledge: Signal Jamming 23686 | -4/Garrison | Spotted B-86 Titan 23754 | -4/Garrison | Triggered checkpoint 23847 | -4/Garrison | Garrison Relay disabled 24206 | -4/Garrison | Triggered checkpoint 24208 | -4/Garrison | Triggered checkpoint 24219 | -4/Garrison | Triggered checkpoint 24324 | -4/Garrison | Lost 13 parts (3p5n2u3w) 24563 | -4/Garrison | Build established: Mutant 25228 | -4/Garrison | Build established: Scavenger-Tank 27896 | -4/Garrison | Destroyed B-86 Titan 28201 | -4/Garrison | Build established: Tank 28314 | -4/Garrison | Crushed by falling debris 28314 | -4/Garrison | System corruption reached 10% 28353 | -4/Garrison | Core integrity fell below 50% 28410 | -4/Garrison | Core integrity fell below 20% 28415 | -4/Garrison | Triggered checkpoint 28449 | -4/Garrison | Discovered new exit (range 14) 28455 | -4/Garrison | Entered Factory 28459 | -4/Factory | Lost 19 parts (1n7u11w) 28606 | -4/Factory | Destroyed by Y-64 Sentinel with KE Penetrator Last Messages --------------- 28428_ 1 L:YFWNYBGBDJ%7SZZF5E 28428_ VTOL Module destroyed. 28429_ Acquired VTOL Module. 28430_ Dropped Superbattery. 28449_ EXIT=FOUND 28454_ Attempting to access garrison exit controls... RIF authorized. LOCATION=UNKNOWN GOAL=ESCAPE 28496_ System corrupted: Energy discharge (-25). 28513_ System corrupted: Energy discharge (-35). 28529_ K-01 Serf cleans the Subcomponent Replicator. 28543_ System corrupted: Matter fused (-2). 28546_ Autogun destroyed. 28546_ Slug penetrates Wall. 28585_ RCLMI2>DRKVB6UL6 D9VMMUG8B88&SSX6K NGUE 28588_ VTOL Module destroyed. 28588_ Penetrated by Slug. 28603_ Slammed into R-10 Processor. 28606_ Slammed into U-05 Engineer. Map ----- +----------------------------------------------------+ | ??????# """# # #??????????????????? | | ??????# # # ]#??????????????????? | | ??????########## ####+########???????????????# | | ???????????????# ????????# | | ???????????????# #### ########???????????????? | | ???????????????# #??# #??????????????????????? | | ???????????????# ####/#####??????????????????? | | ???????????????# # #??????????????#???? | | ???????????????# #! #?????????????## ??? | | ???????????????# # !! #?????????????# ## | | ???????????????# # !! #?????????????# | | ???????????????+ / #?????????????# ## | | ???????????????# # """ #??????????????????# | | ???????????????# ??# """ #??????????????????# | | ???????????????# ????#= """ #??????############# | | ?????????????????????# #??????#! + | | ?????????????????????###/############# """ #### | | ???????????????????????# # """"""" #! """"" #??# | | ???????????????????????# # """"""" # """"" #??# | | ???????????????????????# # """"""" [ # #??# | | ???????????????????????# # """"""" # """ #??# | | ???????????????????????# # # """"" #??# | | ???????????????????????# #! # """"" #??? | | ???????????????????????# # #* #??? | | ???????????????????????#u######/##########+####### | | ???????????????????????# @ Y | | ???????????????????????#R##### | | ???????????????????????# #???# | | ???????????????????????# #???#### | | ???????????????????????# #??????# | | ??########?????????????# #??????# | | ?? ???##########+####???# | | ?? ???# * #???# | | ??? ??# #???# | | ????? ??# #???# | | ??????? ?# ! #???# ############ | | ????????# ?# """" #???# #??????????? | | ????????# # """" #???# #??????????? | | ????????# # """" #???# #??????????? | | ????????# + """" #???# #??????????? | | ????????# # """" !! #???# #??????????? | | ????????# # """" ! #???? #??????????? | | ????????# ?# #???? #??????????? | | ????????# ?###############???? ????????????? | | ????????# ?????????????????????????????????????? | | ????????# ?????????????????????????????????????? | | ????????# ??????????????????????????????????????? | | ????????# ??????????????????????????????????????? | | ????????# ???????????????????????????????????????? | | ????????# ???????????????????????????????????????? | +----------------------------------------------------+ Best States ------------- Heat Dissipation 105 Energy Generation 50 Energy Capacity 2100 Matter Stores 300 Matter Capacity 300 Sight Range 16 Terrain Scan Range 20 Terrain Scan Density 110 ECM Strength 3 Resistance: EM 25 Core Shielding 20 Phase Shifting 10 Evasion (%) 62 Core Analysis 8 Recoil Reduction 4 Relay Coupler Types 54 Relay Coupler Value 2 Item Schematics ----------------- Enh. Autogun | -7/Factory | Scanalyzed Imp. Datajack | -7/Factory | Scanalyzed Flak Cannon | -7/Factory | Scanalyzed Plasma Cannon | -7/Factory | Scanalyzed Robot Schematics ------------------ None Fabricated ------------ Nothing Alien Tech Used ----------------- None Achievements -------------- Packrat Challenges ------------ None Game ------ Seed BombardmentDeepBuckler Manual? 0 Play Time 04:37:21 Cumulative 176.8 hours Start 2022.02.01 @ 19:31:01 End 2022.02.12 @ 15:51:51 Sessions 13 Manual Loads 0 Difficulty Rogue Special Mode None Game No. 118 Rogue 118 Adventurer 0 Explorer 0 Win Type - Total 0 Types 0/0/0/0/0/0/0/0/0 Lore% 43 Gallery% 60 Achievement% 43 Wizard Run 0 Options --------- ASCII 0 Keyboard 0 Movement Numpad Keybinds 0 Fullscreen 1 Font 14/Terminus Map View 72x54 Tactical HUD 1 Map Filters NONE Filters NONE Steam 1 RUN: 5826a114-374c-4077-9976-92f46677234e